Cogmind - Beta 11.1 @@@ ROGUE MODE // 2022.06.07 @ 16:23:35 Player: Cyurio Result: Destroyed by P-60 Hacker with Shock Rifle Performance ------------- Evolutions (0) 0 Regions Visited (3) 600 Robots Destroyed (7) 35 Value Destroyed (179) 179 Prototype IDs (23) 460 Alien Tech Used (0) 0 Bonus (300) 300 TOTAL SCORE: 1574 Bonus ------- Aligned with FarCom 300 Cogmind --------- Core Integrity 0/250 Matter 255/300 Energy 221/250 System Corruption 6% Temperature Cool (6) Movement Core (450) Ox8 Location -10/Exiles Parts ------- > --- POWER (1) -------- Ion Engine > --- PROPULSION (2) --- (None) > --- UTILITY (2) ------ Medium Storage Unit Signal Interpreter > --- WEAPON (2) ------- Latent Energy Streamer > --- INVENTORY (10) --- Light Treads Light Treads Lightpack 2.0 Medium Matter Pod (0) Assault Rifle Assault Rifle Hammer Hammer Peak State ------------ > --- POWER ------------ Ion Engine > --- PROPULSION ------- Aluminum Leg Aluminum Leg > --- UTILITY ---------- Medium Storage Unit Signal Interpreter > --- WEAPON ----------- Latent Energy Streamer Grenade Launcher > --- INVENTORY -------- Light Treads Light Treads Lightpack 2.0 Medium Matter Pod Assault Rifle Assault Rifle Hammer Hammer [Rating: 19] Favorites ----------- Power Ion Engine Engine Ion Engine Propulsion Aluminum Leg Leg Aluminum Leg Utility Medium Storage Unit Storage Medium Storage Unit Processor Signal Interpreter Weapon Hammer Energy Cannon Latent Energy Streamer Ballistic Gun Assault Rifle Launcher Grenade Launcher Impact Weapon Hammer Build | -11 -10 -10 -10 ------- Run | Scr Mat Min Exi Slots Evolved . | . . . . Power . | . . . . Propulsion . | . . . . Utility . | . . . . Weapon . | . . . . Parts Attached 7 | . 6 . 1 Power 1 | . 1 . . Engine 1 | . 1 . . Core . | . . . . Reactor . | . . . . Propulsion . | . . . . Treads . | . . . . Leg . | . . . . Wheel . | . . . . Hover . | . . . . Flight . | . . . . Utility 2 | . 2 . . Device . | . . . . Storage 1 | . 1 . . Processor 1 | . 1 . . Hackware . | . . . . Protection . | . . . . Artifact . | . . . . Weapon 4 | . 3 . 1 Energy Gun . | . . . . Energy Cannon 1 | . . . 1 Ballistic Gun . | . . . . Ballistic Cannon . | . . . . Launcher 1 | . 1 . . Special Weapon . | . . . . Impact Weapon 2 | . 2 . . Slashing Weapon . | . . . . Piercing Weapon . | . . . . Special Melee Weapon . | . . . . Unidentified Prototypes . | . . . . Parts Lost 4 | . 1 . 3 Power 1 | . 1 . . Propulsion 2 | . . . 2 Utility . | . . . . Weapon 1 | . . . 1 Highest Loss Streak 3 | . 1 . 3 To Critical Strikes . | . . . . Average Slot Usage (%) 93 | . 87 100 99 Engine 14 | . 14 14 14 Leg 28 | . 28 28 28 Storage 14 | . 14 14 14 Processor 8 | . 2 14 14 Ballistic Gun 2 | . 4 . . Launcher 6 | . . 14 13 Impact Weapon 18 | . 23 14 13 Naked Turns . | . . . . Heaviest Build 28 | 14 20 20 28 Greatest Support 20 | 20 20 20 20 Greatest Overweight (x) 8 | . . . 8 Average Overweight (x) . | . . . . Largest Inventory Capacity 10 | . 10 10 10 Average Capacity 9 | . 9 10 10 Most Carried 10 | . 10 10 10 Average Carried 9 | . 9 10 9 Final Capacity 10 | 8 10 10 10 Final Carried 10 | 6 10 10 10 Class Distribution -------------------- 100% | Mutant Dominant Class ---------------- Mutant | -10/Materials Mutant | -10/Mines Mutant | -10/Exiles Resources | -11 -10 -10 -10 ----------- Run | Scr Mat Min Exi Matter Collected 247 | 192 55 . . Remotely . | . . . . Salvage Created 194 | . 194 . . Parts 7 | . 7 . . Haulers Intercepted . | . . . . Recyclers Shooed . | . . . . Parts Field Recycled . | . . . . Retrieved Matter . | . . . . Parts Self-Destructed . | . . . . Prevented . | . . . . Kills | -11 -10 -10 -10 ------- Run | Scr Mat Min Exi Combat Hostiles Destroyed 7 | . 7 . . Melee 5 | . 5 . . Classes Destroyed 2 | . 2 . . Swarmer 3 | . 3 . . Grunt 4 | . 4 . . Best Kill Streak 3 | . 3 . . Combat Bots Only 3 | . 3 . . Max Kills in Single Turn 1 | . 1 . . Gunslinging . | . . . . Exploded . | . . . . Melee 1 | . 1 . . Uniques/NPCs Destroyed . | . . . . Combat | -11 -10 -10 -10 -------- Run | Scr Mat Min Exi Damage Taken 787 | . 333 . 454 Core 255 | . 62 . 193 Absorbed by Shields . | . . . . Core Remaining (%) 100 | 100 . . . Volleys Fired 4 | . . . 4 Largest 1 | . . . 1 Hottest 60 | . . . 60 Shots Fired 4 | . . . 4 Gun . | . . . . Cannon 1 | . . . 1 Launcher 3 | . . . 3 Special . | . . . . Kinetic . | . . . . Thermal . | . . . . Explosive 3 | . . . 3 Electromagnetic 1 | . . . 1 Robot Hit Streak . | . . . . Robot Miss Streak 1 | . . . 1 Penetration Max . | . . . . Secondary Targets . | . . . . Shots Hit Robots 19 | . 19 . . Core Hits 9 | . 4 . 5 Critical Kills 1 | . 1 . . Critical Parts Destroyed 6 | . 6 . . Critical Strikes 7 | . 7 . . Smash 7 | . 7 . . Melee Attacks 31 | . 31 . . Impact 31 | . 31 . . Slashing . | . . . . Piercing . | . . . . Sneak Attacks . | . . . . Combat Hostiles . | . . . . Follow-up Attacks 6 | . 6 . . Damage Inflicted 577 | . 475 . 102 Guns . | . . . . Cannons . | . . . . Explosions 102 | . . . 102 Melee 475 | . 475 . . Ramming . | . . . . Kinetic . | . . . . Thermal . | . . . . Explosive 37 | . . . 37 Electromagnetic 65 | . . . 65 Impact 475 | . 475 . . Slashing . | . . . . Piercing . | . . . . Highest Corruption 6 | . 1 1 6 Average Corruption 1 | . 1 1 1 Corruption Purged . | . . . . Corruption Blocked . | . . . . Effects 3 | . 2 . 1 Message Errors 2 | . 1 . 1 Matter Fused 1 | . 1 . . Overload Shots . | . . . . Overflow Damage 199 | . 199 . . Projectiles . | . . . . Explosions . | . . . . Melee 199 | . 199 . . Knockbacks 1 | . 1 . . Impact 1 | . 1 . . Kinetic . | . . . . Secondary . | . . . . Self-Inflicted Damage . | . . . . Shots . | . . . . Rammed . | . . . . Targets Rammed . | . . . . Kicked . | . . . . Crushed . | . . . . Highest Temperature 20 | . . . 20 Average Temperature 8 | . . . 8 Received Heat Transfer 132 | . 96 . 36 Siege Activations . | . . . . Robots Corrupted . | . . . . Combat Hostiles . | . . . . Parts Fried 2 | . 2 . . Impact Corruptions 9 | . 9 . . Robots Melted . | . . . . Combat Hostiles . | . . . . Parts Melted . | . . . . Heat Transferred . | . . . . Parts Sabotaged . | . . . . Parts Stolen . | . . . . Parts Stripped . | . . . . Power Chain Reactions . | . . . . Missiles Intercepted . | . . . . Latent Energy Used 200 | . . . 200 LE Corruption 3 | . . . 3 Alert | -11 -10 -10 -10 ------- Run | Scr Mat Min Exi Peak Influence 232 | . 232 15 . Initial 15 | . . 15 . Average 68 | . 79 15 . Maximum Alert Level 1 | . 1 . . Low Security (%) 96 | . 96 100 . Level 1 3 | . 3 . . Level 2 . | . . . . Level 3 . | . . . . Level 4 . | . . . . Level 5 . | . . . . High Security . | . . . . Max Security . | . . . . Squads Dispatched 2 | . 2 . . Investigation 2 | . 2 . . Extermination . | . . . . Reinforcement . | . . . . Assault . | . . . . Garrison . | . . . . Intercept . | . . . . Searches Triggered . | . . . . Construction Impeded . | . . . . Haulers Reinforced . | . . . . Active Scanning Responses . | . . . . Cargo Convoy Interrupts . | . . . . Stealth | -11 -10 -10 -10 --------- Run | Scr Mat Min Exi Distress Signals 1 | . 1 . . Communications Jammed . | . . . . Distress Signals . | . . . . Times Spotted 18 | . 9 . 9 Peak Tracking Total 15 | . 4 . 15 Tactical Retreats 2 | . 2 . . Traps | -11 -10 -10 -10 ------- Run | Scr Mat Min Exi Traps Triggered 2 | . 2 . . Indirectly . | . . . . Trap Hack Attempts . | . . . . Triggered . | . . . . Disarmed . | . . . . Reprogrammed 1 | . 1 . . Reused . | . . . . Traps Extracted . | . . . . Installed . | . . . . Triggered . | . . . . Exploded 1 | . . . 1 Machines | -11 -10 -10 -10 ---------- Run | Scr Mat Min Exi Machines Disabled 1 | . . . 1 Max in Single Turn 1 | . . . 1 Machines Sabotaged . | . . . . Garrisons Compromised . | . . . . Overloaded Fab Kills . | . . . . Hacking | -11 -10 -10 -10 --------- Run | Scr Mat Min Exi Machines Accessed 6 | . 5 . 1 Terminals 5 | . 5 . . Fabricators . | . . . . Repair Stations . | . . . . Recycling Units . | . . . . Scanalyzers . | . . . . Garrison Access . | . . . . Total Hacks 15 | . 14 . 1 Successful 10 | . 9 . 1 Failed 5 | . 5 . . Catastrophic . | . . . . Database Lockouts . | . . . . Manual 4 | . 3 . 1 Terminals 14 | . 14 . . Fabricators . | . . . . Repair Stations . | . . . . Recycling Units . | . . . . Scanalyzers . | . . . . Garrison Access . | . . . . Terminal Hacks 10 | . 9 . 1 Record 7 | . 7 . . Locate Traps 1 | . 1 . . Reprogram Traps 1 | . 1 . . EX-Prototype ID Bank 1 | . . . 1 Fabricator Hacks . | . . . . Repair Station Hacks . | . . . . Recycling Unit Hacks . | . . . . Scanalyzer . | . . . . Garrison Access Hacks . | . . . . Unauthorized Hacks . | . . . . Terminals . | . . . . Fabricators . | . . . . Repair Stations . | . . . . Recycling Units . | . . . . Scanalyzers . | . . . . Garrison Access . | . . . . Data Cores Recovered . | . . . . Used . | . . . . Hacking Detections 5 | . 5 . . Full Trace Events 2 | . 2 . . Feedback Events . | . . . . Feedback Blocked . | . . . . Robot Schematics Acquired . | . . . . Robots Built . | . . . . Authchips . | . . . . Time . | . . . . Total Robot Build Rating . | . . . . Part Schematics Acquired . | . . . . Parts Built . | . . . . Authchips . | . . . . Time . | . . . . Total Part Build Rating . | . . . . Parts Repaired . | . . . . Time . | . . . . Parts Recycled . | . . . . Recycled Matter . | . . . . Retrieved Matter . | . . . . Retrieved Components . | . . . . Parts Scanalyzed . | . . . . Part Schematics Acquired . | . . . . Parts Damaged . | . . . . Bothacking | -11 -10 -10 -10 ------------ Run | Scr Mat Min Exi Used RIF Installer . | . . . . Robots Hacked . | . . . . Non-combat . | . . . . Combat . | . . . . Robot Hacks Applied . | . . . . Relay Couplers Released . | . . . . Fabnet Peak Effective % . | . . . . Robots Rewired . | . . . . Allies Hacked . | . . . . Hacks Repelled . | . . . . Allies | -11 -10 -10 -10 -------- Run | Scr Mat Min Exi Total Allies . | . . . . Largest Group . | . . . . Highest-Rated Group . | . . . . Highest-Rated Ally . | . . . . Total Orders . | . . . . Ally Attacks . | . . . . Total Damage . | . . . . Kills . | . . . . Allies Corrupted . | . . . . Allies Melted . | . . . . Intel | -11 -10 -10 -10 ------- Run | Scr Mat Min Exi Robot Analysis Total . | . . . . Derelict Logs Recovered . | . . . . Drone Launches . | . . . . Drone Recoveries . | . . . . Exploration | -11 -10 -10 -10 ------------- Run | Scr Mat Min Exi Turns Passed 926 | . 484 98 344 Spaces Moved 651 | 1 303 81 266 Core 1 | . . . 1 Treads . | . . . . Legs 650 | 1 303 81 265 Wheels . | . . . . Hover . | . . . . Flight . | . . . . Fastest Speed 120 | 120 120 120 120 Average Speed 121 | 120 120 120 122 Slowest Speed 450 | 120 120 120 450 Overloaded Moves . | . . . . Propulsion Burnouts . | . . . . Robots Hopped . | . . . . Cave-ins Triggered . | . . . . Exploration Rate (%) 29 | 2 60 9 45 Regions Visited 3 Branch Regions 2 Pre-discovered Areas . | . . . . Known Exits Taken 2 | . 1 1 . Unknown Exits Taken 1 | 1 . . . Scrap Searched . | . . . . Spaces Dug . | . . . . Terrain Destroyed 6 | . . . 6 Melee . | . . . . Projectile . | . . . . AOE 6 | . . . 6 Terrain Rammed . | . . . . Walls Destroyed . | . . . . Machines Disabled . | . . . . Actions | -11 -10 -10 -10 --------- Run | Scr Mat Min Exi Total 740 | . 377 82 281 Wait 43 | . 37 2 4 Move 648 | . 302 80 266 Hop . | . . . . Pick Up 6 | . 4 . 2 Fast Attach 2 | . 2 . . Attach 3 | . 3 . . Detach 3 | . 3 . . Swap 2 | . 1 . 1 Drop 4 | . . . 4 Fire 4 | . . . 4 Melee 25 | . 25 . . Ram . | . . . . Kick . | . . . . Crush . | . . . . Escape Stasis . | . . . . Rewire . | . . . . Trap . | . . . . Miscellaneous . | . . . . Route ------- -11/Scrapyard -10/Materials (discovered 2 exits: *Mat / *Min) -10/Mines -10/Exiles History --------- Turn | Location | Event 1 | -11/Scrapyard | Discovered new exit (range 0) 1 | -11/Scrapyard | Entered Materials 318 | -10/Materials | Build established: Mutant 390 | -10/Materials | Discovered new exit (range 6) 396 | -10/Materials | Identified exit to Materials 455 | -10/Materials | Discovered new exit (range 7) 462 | -10/Materials | Identified exit to Mines 485 | -10/Materials | Entered Mines 579 | -10/Mines | Deemed a non-threat by the Exiles lab entrance 579 | -10/Mines | Discovered new exit (range 5) 582 | -10/Mines | Identified exit to Exiles 583 | -10/Mines | Entered Exiles 613 | -10/Exiles | Met 8R-AWN 634 | -10/Exiles | Met EX-HEX 669 | -10/Exiles | Met EX-BIN 689 | -10/Exiles | Aligned with FarCom system 690 | -10/Exiles | Given EX-Vault access code 721 | -10/Exiles | Opened EX-Vault 730 | -10/Exiles | Found Latent Energy Streamer 761 | -10/Exiles | Warned to stay clear of 0b10 Research branches 776 | -10/Exiles | Exiles lab attacked by MAIN.C 861 | -10/Exiles | Found Lightpack 2.0 922 | -10/Exiles | Core integrity fell below 50% 927 | -10/Exiles | Core integrity fell below 20% 927 | -10/Exiles | Destroyed by P-60 Hacker with Shock Rifle Last Messages --------------- 00809_ 8R-AWN: "We've got company!" 00811_ EXILES: Lab perimeter alert, evacuate immediately. 00813_ EX-BIN: "Not cool, MAIN.C, I don't even have my SDF Cannon ready..." 00813_ 8R-AWN: "I'll cover you all, get out of here!" 00859_ Dropped Wheel. 00860_ Dropped Com. Wheel. 00860_ Dropped Sml. Storage Unit. 00861_ Acquired Lightpack 2.0. 00900_ S-10 Pest suffers critical hit (Blast). 00900_ S-10 Pest destroyed. 00909_ Slug penetrates Machine. 00909_ Machine disabled. 00912_ Penetrated by Slug. 00915_ P-60 Hacker resets G-34 Mercenary, system corruption cleaned. 00917_ DC62NIBZN2TEEK2 CUH DL7Z06CB:GLH 00917_ Grenade Launcher destroyed. 00918_ Penetrated by Slug. 00920_ Aluminum Leg destroyed. 00924_ Slug penetrates Machine. Map ----- +----------------------------------------------------+ | ??????????????????#""X" #????????????????? | | ??????????????????#" #????????????????? | | ??????????????????#" ## #????????????????? | | ??????????????????#""""""?# #?#########??????? | | ???????????????????#"###??# #?#"""""""#??????? | | ??????????????????????????# #?#"""""""#??????? | | ??????????????????????????# #?#"""""""#??????? | | ?????????????????????????## ###"" """"#??????? | | ?????????????????????????#" """"#??????? | | ?????????????????????????#" """#??????? | | ?????????????????????????#" """#??????? | | ?????????????????????????#" """#??????? | | ?????????????????????????#" """#??????? | | ?????????????????????????#" """##?????? | | ?????????????????????????## """""?????? | | ??????????????????????????# """##?????? | | ??????????????????????????#" "X" """""?????? | | ??????????????????????????#" """ # ?????? | | ??????????????????????????#" """""""""#??????? | | ?????????????????????????##" ###########??????? | | ????????????????????????##" #????????????????? | | ???????????????##??######"" #????????????????? | | ?????????##X# ?#"###""""" ##???????????????? | | ????????? """""" " " ##???###########? | | ????????? "" """ h #####"""""""""## | | ???????? " " @ " """ """"# | | ???????? % "" " | | ??????? " """ | | ??????? %[ g " " | | ??????? [ p " " | | ??????? ppg " | | ???????" g | | ???????? # #""" g | | ???????? "" # ########"" | | ????????? """####???????##" | | ????????? """#????????????#"" | | ????????? ""?????????????#"" | | ?????????? ???????????????"""" | | ?????????? ?????????????????? | | ??????????? ????????????????? | | ??????????? ?????????????????? | | ??????????????????????????????? | | ??????????????????????????????? " | | ??????????????????????????????? "" """ | | ?????????????????????????????????"" " " ""#" | | ??????????????????????????????????##""" """##""""" | | ?????????????????????????????????????#"""???###### | | ?????????????????????????????????????##??????????? | | ?????????????????????????????????????????????????? | | ?????????????????????????????????????????????????? | +----------------------------------------------------+ Best States ------------- Heat Dissipation 25 Energy Generation 10 Energy Capacity 250 Matter Stores 300 Matter Capacity 300 Sight Range 16 Terrain Scan Density 10 Evasion (%) 55 Item Schematics ----------------- None Robot Schematics ------------------ None Fabricated ------------ Nothing Alien Tech Used ----------------- None Achievements -------------- None Challenges ------------ None Game ------ Seed PrecisionHackingGenerator Manual? 0 Play Time 00:16:02 Cumulative 32.0 hours Start 2022.06.07 @ 16:10:21 End 2022.06.07 @ 16:23:35 Sessions 1 Manual Loads 0 Difficulty Rogue Special Mode None Game No. 51 Rogue 51 Adventurer 0 Explorer 0 Win Type - Total 0 Types 0/0/0/0/0/0/0/0/0 Lore% 25 Gallery% 29 Achievement% 26 Wizard Run 0 Options --------- ASCII 0 Keyboard 1 Movement Vi Keybinds 0 Fullscreen 1 Font 24/Smallcaps Map View 76x50 Tactical HUD 1 Map Filters NONE Filters NONE Steam 1 RUN: 2acc20bd-13e7-4e4a-bbe6-c2e60cff0c5c